bitfinex-derivatives/quotes_BTCF0:USTF0_20250506
["timestamp","ask_amount","ask_price","bid_price","bid_amount"]
[1746539504850,0.4029578,93631.0,93630.0,1.5]
[1746539505444,0.4029578,93631.0,93630.0,1.7136601]
[1746539505952,0.1893,93631.0,93630.0,1.7136601]
[1746539506249,0.146,93631.0,93630.0,1.52291058]
[1746539506637,0.146,93631.0,93630.0,1.56691058]
[1746539506845,0.04649084,93638.0,93637.0,0.2136441]
[1746539507040,0.04649084,93638.0,93637.0,0.7544441]
[1746539507349,0.04649084,93638.0,93637.0,1.1112401]
[1746539507849,0.04649084,93638.0,93637.0,0.9475401]
[1746539508244,0.1893008,93641.0,93640.0,0.2136373]
[1746539508443,0.0481564,93641.0,93640.0,1.9028773]
[1746539508646,0.17519738,93650.0,93649.0,0.2136168]
[1746539508947,0.25844594,93657.0,93656.0,0.2136008]
[1746539509247,0.25844594,93657.0,93656.0,1.9916008]
[1746539509448,0.25844594,93657.0,93656.0,2.0983728]
[1746539509650,0.25844594,93657.0,93656.0,1.9916008]
[1746539509839,0.25844594,93657.0,93656.0,2.1208408]
[1746539510040,0.26844594,93657.0,93656.0,2.1074408]
[1746539511046,0.26844594,93657.0,93656.0,1.9782008]
[1746539511343,0.26844594,93657.0,93656.0,2.1024408]
[1746539511547,0.20670944,93657.0,93656.0,2.5192128]
[1746539511754,0.17889214,93657.0,93656.0,2.5192128]
[1746539512050,0.01601,93664.0,93663.0,0.2135848]
[1746539512348,0.2067519,93668.0,93665.0,0.2135803]
[1746539512544,0.031,93666.0,93665.0,0.2135803]
[1746539512737,0.001,93666.0,93665.0,0.3025803]
[1746539513247,0.021,93666.0,93665.0,0.4805803]
[1746539513448,0.1623519,93668.0,93667.0,0.2135757]
[1746539513649,0.1623519,93668.0,93667.0,0.27110659]
[1746539513948,0.1623519,93668.0,93667.0,0.37786659]
[1746539514244,0.1623519,93668.0,93667.0,0.51631114]
[1746539514443,0.3759253,93668.0,93667.0,0.18597544]
[1746539514751,0.1623519,93668.0,93667.0,0.39955114]
[1746539515067,0.08108027,93670.0,93669.0,0.2669634]
[1746539515349,0.08108027,93670.0,93669.0,0.6277634]
[1746539515543,0.08108027,93670.0,93669.0,0.8394634]
[1746539515743,0.08108027,93670.0,93669.0,0.8494634]
[1746539515945,0.08108027,93670.0,93669.0,0.8594634]
[1746539516145,0.10810703,93679.0,93678.0,0.1673906]
[1746539516450,0.10810703,93679.0,93670.0,0.3608]
[1746539516648,0.2135538,93677.0,93675.0,0.213556]
[1746539516949,0.2135575,93675.0,93674.0,0.2135583]
[1746539517149,0.2135575,93675.0,93674.0,1.7135583]
[1746539517349,0.2135537,93677.0,93676.0,0.2135529]
[1746539517546,0.2135575,93675.0,93674.0,1.5]
[1746539517940,0.213554,93677.0,93676.0,0.2135529]
[1746539518141,0.213554,93677.0,93674.0,1.5]
[1746539518142,0.2135575,93675.0,93674.0,1.5]
[1746539518350,0.5743575,93675.0,93674.0,1.5]
[1746539519249,0.2135711,93669.0,93668.0,0.2135734]
[1746539519445,0.2135734,93668.0,93665.0,0.0471]
[1746539519644,0.2669605,93673.0,93672.0,0.21356]
[1746539520542,0.3608,93675.0,93665.0,0.1004946]
[1746539520751,0.0533957,93664.0,93651.0,0.04723812]
[1746539520950,0.151868,93663.0,93612.0,0.3608]
[1746539521251,0.5744213,93647.0,93636.0,0.1000114]
[1746539521447,0.6544213,93647.0,93637.0,0.0534106]
[1746539521749,0.3608,93647.0,93646.0,0.21522533]
[1746539521947,0.3608,93647.0,93646.0,0.01965168]
[1746539522144,0.3608,93647.0,93646.0,0.00965168]
[1746539522448,0.5744213,93647.0,93646.0,0.00965168]
[1746539523260,0.3608,93647.0,93646.0,0.22167355]
[1746539523445,0.3608,93647.0,93646.0,0.29167355]
[1746539524147,0.3608,93647.0,93646.0,0.37897355]
[1746539524451,0.3608,93647.0,93646.0,0.30897355]
[1746539524653,0.5744213,93647.0,93646.0,0.00804995]
[1746539524948,0.2136345,93642.0,93641.0,0.2136323]
[1746539525153,0.2136373,93642.0,93641.0,0.2670389]
[1746539525346,0.3608,93647.0,93636.0,0.0439]
[1746539525546,0.3608,93647.0,93646.0,0.2136236]
[1746539525944,0.5744213,93647.0,93646.0,0.2136236]
[1746539526139,0.3608,93647.0,93646.0,0.2136236]
[1746539526551,0.5744213,93647.0,93646.0,0.00789131]
[1746539526760,0.2136327,93642.0,93641.0,0.2136334]
[1746539527155,0.2136327,93642.0,93637.0,0.0534105]
[1746539527156,0.3608,93647.0,93646.0,0.2136236]
[1746539528154,0.3608,93647.0,93646.0,0.2564236]
[1746539528549,0.5744213,93647.0,93646.0,0.0428]
[1746539528756,0.5744213,93647.0,93646.0,0.2564236]
[1746539528944,0.3608,93647.0,93646.0,0.2564236]
[1746539530064,0.2136277,93646.0,93645.0,0.2136238]
[1746539530246,0.3572336,93646.0,93645.0,0.2136238]
[1746539530751,0.3572336,93646.0,93643.0,0.0534075]
[1746539530752,0.0902,93646.0,93643.0,0.0534071]
[1746539530958,0.0902,93646.0,93645.0,0.2136259]
[1746539531352,0.3608,93647.0,93646.0,0.2136236]
[1746539531557,0.3608,93647.0,93646.0,0.4036236]
[1746539531756,0.3608,93662.0,93653.0,0.0534017]
[1746539531950,0.10810703,93656.0,93655.0,0.2136031]
[1746539532257,0.10810703,93656.0,93655.0,0.6633031]
[1746539532447,0.10810703,93656.0,93655.0,2.0900791]
[1746539533257,0.10810703,93656.0,93655.0,2.4833031]
[1746539534155,0.10810703,93656.0,93655.0,2.3053031]
[1746539534551,0.15290703,93656.0,93655.0,1.80823136]
[1746539534851,0.72730783,93656.0,93655.0,1.50292826]
[1746539535259,0.6192008,93656.0,93655.0,1.71653136]
[1746539535656,0.6192008,93656.0,93655.0,0.00292826]
[1746539535954,0.6192008,93656.0,93652.0,0.213608]
[1746539535955,0.2136282,93644.0,93602.0,0.27172955]
[1746539536153,0.5744282,93644.0,93636.0,1.543]
[1746539536354,0.3608,93644.0,93643.0,0.3334704]
[1746539536751,0.4525,93644.0,93643.0,0.3334704]
[1746539537255,0.6661282,93644.0,93643.0,0.3334704]
[1746539538158,0.4525,93644.0,93643.0,0.3334704]
[1746539538358,0.4525,93644.0,93643.0,0.2136304]
[1746539538857,0.2136327,93642.0,93641.0,0.00785346]
[1746539539061,0.2136327,93642.0,93641.0,0.2136324]
[1746539539267,0.2670572,93639.0,93638.0,0.2136384]
[1746539540257,0.2136464,93639.0,93638.0,0.2136384]
[1746539540458,0.2136464,93637.0,93636.0,0.2136453]
[1746539540854,0.0885,93637.0,93636.0,0.2136453]
[1746539541354,0.0885,93637.0,93636.0,0.2577453]
[1746539542465,0.3021441,93637.0,93636.0,0.2577453]
[1746539543060,0.2136464,93636.0,93635.0,0.12901532]
[1746539543364,0.5744464,93636.0,93635.0,0.34266402]
[1746539543656,0.4479,93636.0,93635.0,0.12901532]
[1746539543868,0.7415464,93636.0,93635.0,0.00106797]
[1746539545355,0.7415464,93636.0,93635.0,0.21471667]
[1746539545555,0.4038,93636.0,93635.0,0.21471667]
[1746539546253,0.4038,93636.0,93635.0,0.43551667]
[1746539547166,0.6174464,93636.0,93635.0,0.25751667]
[1746539548267,0.6174464,93636.0,93635.0,0.21471667]
[1746539548470,0.6174464,93636.0,93635.0,0.00106797]
[1746539552061,0.6974464,93636.0,93635.0,0.00106797]
[1746539552779,0.2136647,93628.0,93627.0,0.00160209]
[1746539552962,0.5744647,93628.0,93627.0,0.21526899]
[1746539553157,0.5744647,93628.0,93627.0,0.00160209]
[1746539553357,0.6544647,93628.0,93627.0,0.00160209]
[1746539553572,0.7430647,93628.0,93627.0,0.00160209]
[1746539556170,0.6630647,93628.0,93627.0,0.00160209]
[1746539556376,0.6630647,93628.0,93627.0,0.21526899]
[1746539556570,0.5294,93628.0,93627.0,0.26526899]
[1746539556775,0.4044,93628.0,93627.0,0.26526899]
[1746539557075,0.4044,93628.0,93627.0,0.30786899]
[1746539557273,0.6180647,93628.0,93627.0,0.30786899]
[1746539558168,0.6180647,93628.0,93627.0,0.09420209]
[1746539558375,0.6180647,93628.0,93627.0,0.30786899]
[1746539558875,0.5744647,93628.0,93627.0,0.30786899]
[1746539559068,0.3608,93628.0,93627.0,0.30786899]
[1746539559576,0.3608,93628.0,93627.0,0.34786899]
[1746539559876,0.3608,93628.0,93627.0,0.30786899]
[1746539560373,0.5744647,93628.0,93627.0,0.09420209]
[1746539560569,0.5744647,93628.0,93627.0,0.30786899]
[1746539562671,0.3608,93628.0,93627.0,0.30786899]
[1746539563479,0.5744647,93628.0,93627.0,0.30786899]
[1746539563677,0.3608,93628.0,93627.0,0.30786899]
[1746539563878,0.3608,93636.0,93635.0,0.2136487]
[1746539564076,0.3608,93636.0,93635.0,0.4716487]
[1746539564784,0.3608,93636.0,93635.0,0.5642487]
[1746539565078,0.3608,93636.0,93635.0,0.4842487]
[1746539565381,0.3608,93636.0,93635.0,1.9842487]
[1746539565880,0.3608,93636.0,93635.0,1.99986692]
[1746539566283,0.3608,93636.0,93635.0,1.82186692]
[1746539566482,0.3608,93636.0,93635.0,0.32186692]
[1746539567080,0.3608,93636.0,93635.0,0.50014121]
[1746539567881,0.5744464,93636.0,93635.0,0.28649251]
[1746539568180,0.5744464,93636.0,93635.0,0.10849251]
[1746539568484,0.5744464,93636.0,93635.0,0.06269251]
[1746539569077,0.6544464,93636.0,93635.0,0.01589251]
[1746539569882,0.6544464,93636.0,93635.0,0.22954121]
[1746539570082,0.6544464,93636.0,93635.0,0.01589251]
[1746539570784,0.6544464,93636.0,93494.0,0.6876]
[1746539571087,0.6544464,93636.0,93582.0,0.03380767]
[1746539571088,0.804596,93636.0,93582.0,0.03380767]
[1746539571380,0.2138245,93558.0,93557.0,9e-08]
[1746539571578,1.0154245,93558.0,93557.0,9e-08]
[1746539571774,1.12231251,93558.0,93557.0,9e-08]
[1746539571978,0.2138497,93547.0,93546.0,0.2650498]
[1746539572282,0.213884,93532.0,93531.0,0.12082415]
[1746539572486,0.9016,93532.0,93523.0,0.35383524]
[1746539572683,0.0534833,93511.0,93506.0,0.12193138]
[1746539572981,0.2139526,93502.0,93501.0,0.75701273]
[1746539573192,0.2139526,93502.0,93491.0,0.69488543]
[1746539573193,0.053489,93501.0,93491.0,0.69488543]
[1746539573385,0.213964,93497.0,93496.0,0.55698591]
[1746539573575,0.343964,93497.0,93496.0,0.36530304]
[1746539573887,0.08,93497.0,93496.0,0.36530304]
[1746539574277,0.08,93497.0,93496.0,0.72610304]
[1746539574479,0.08,93497.0,93496.0,0.94006934]
[1746539574683,0.08,93497.0,93496.0,0.72610304]
[1746539574874,0.08,93497.0,93496.0,0.3608]
[1746539575090,0.08,93497.0,93496.0,1.8608]
[1746539575578,0.293964,93497.0,93496.0,0.3608]
[1746539575782,0.08,93497.0,93496.0,0.3608]
[1746539575982,0.08,93497.0,93496.0,0.5747663]
[1746539576283,0.08,93497.0,93485.0,0.05456708]
[1746539576284,0.2139846,93488.0,93485.0,0.00106968]
[1746539576482,0.3939846,93488.0,93486.0,0.3608]
[1746539577086,0.1,93492.0,93487.0,0.9775006]
[1746539577278,0.05,93503.0,93491.0,0.3608]
[1746539577478,0.23,93503.0,93500.0,0.414289]
[1746539577778,0.1,93503.0,93502.0,1.47996749]
[1746539577978,0.1,93511.0,93502.0,1.47996749]
[1746539578179,0.1,93511.0,93510.0,0.3608]
[1746539578385,0.313932,93511.0,93510.0,0.3608]
[1746539580378,0.1,93511.0,93510.0,0.5747343]
[1746539580581,0.37528084,93511.0,93510.0,0.3608]
[1746539580779,0.06134884,93511.0,93510.0,1.34127582]
[1746539580981,0.06134884,93511.0,93510.0,2.63649714]
[1746539581386,0.06134884,93511.0,93510.0,4.31449714]
[1746539581578,0.03012,93520.0,93519.0,0.2139137]
[1746539581782,0.574668,93539.0,93538.0,0.2138702]
[1746539581983,0.00085,93544.0,93533.0,0.2138754]
[1746539582193,0.2138771,93535.0,93534.0,0.0437]
[1746539582489,0.2139251,93514.0,93499.0,0.3608]
[1746539582677,0.2139251,93514.0,93508.0,0.0437]
[1746539583081,0.0534772,93521.0,93518.0,0.2139114]
[1746539583383,0.0534772,93521.0,93513.0,0.4142816]
[1746539583384,0.24011594,93540.0,93523.0,0.0534761]
[1746539583584,0.2138931,93528.0,93527.0,1.10634994]
[1746539583791,0.0015,93540.0,93527.0,2.39527963]
[1746539583982,0.0534678,93538.0,93536.0,0.46640871]
[1746539584188,0.0015,93540.0,93535.0,0.3608]
[1746539584492,0.0015,93540.0,93539.0,0.213868]
[1746539584787,0.0015,93540.0,93539.0,1.22994809]
[1746539584986,0.0015,93540.0,93539.0,1.97549803]
[1746539585182,0.18588331,93548.0,93543.0,1.01608009]
[1746539585389,0.18588331,93548.0,93545.0,1.8997472]
[1746539585883,0.0544462,93576.0,93552.0,0.0534591]
[1746539586083,0.0534511,93567.0,93556.0,1.8997221]
[1746539586280,0.01603,93565.0,93556.0,1.8997221]
[1746539586485,0.01603,93565.0,93556.0,3.3997221]
[1746539586693,0.42626487,93557.0,93556.0,3.185893]
[1746539586886,0.2138268,93557.0,93556.0,3.3997221]
[1746539587089,0.2138268,93557.0,93556.0,3.5777221]
[1746539587389,0.01603,93565.0,93564.0,0.2138108]
[1746539587598,0.0534412,93585.0,93574.0,0.213788]
[1746539587793,0.18782377,93580.0,93579.0,0.79331956]
[1746539588095,0.1,93600.0,93579.0,3.363893]
[1746539588293,0.3240886,93600.0,93599.0,0.3608]
[1746539588992,0.2137469,93592.0,93591.0,0.3608]
[1746539589185,0.2137651,93584.0,93583.0,0.85868429]
[1746539589385,0.2137743,93580.0,93579.0,0.3608]
[1746539589890,0.2137743,93580.0,93579.0,1.8996695]
[1746539590103,0.34660002,93582.0,93581.0,0.213772]
[1746539590287,0.40390002,93582.0,93581.0,0.79331506]
[1746539590486,0.40390002,93582.0,93581.0,1.325093]
[1746539591598,0.13282762,93582.0,93581.0,1.538865]
[1746539592294,0.13282762,93582.0,93581.0,1.786865]
[1746539592488,0.34659732,93582.0,93581.0,1.716865]
[1746539592684,0.2137697,93582.0,93581.0,1.716865]
[1746539592890,0.2672014,93588.0,93587.0,0.2137583]
[1746539593193,0.3234014,93588.0,93587.0,0.5745583]
[1746539593391,0.2672142,93583.0,93582.0,0.2137682]
[1746539593595,0.0534398,93587.0,93574.0,0.3608]
[1746539593793,0.0472,93582.0,93574.0,0.3608]
[1746539594000,0.2672075,93586.0,93585.0,0.2137606]
[1746539594297,0.3258075,93586.0,93585.0,0.2137606]
[1746539594495,0.0534456,93577.0,93560.0,0.10884]
[1746539594699,0.2138245,93558.0,93554.0,0.0534582]
[1746539594901,0.2138245,93558.0,93557.0,1.01639958]
[1746539595199,0.2138245,93558.0,93557.0,1.48280829]
[1746539595404,0.2138245,93558.0,93557.0,1.26898149]
[1746539595902,0.2138245,93558.0,93557.0,0.00160329]
[1746539596200,0.213852,93546.0,93545.0,0.001069]
[1746539597000,0.213852,93546.0,93545.0,0.5757232]
[1746539597198,0.272752,93546.0,93545.0,0.5757232]
[1746539597993,0.2672929,93556.0,93553.0,0.0534584]
[1746539598199,0.2138337,93554.0,93553.0,0.46967795]
[1746539598400,0.0589,93555.0,93554.0,1.42579235]
[1746539598593,0.2727314,93555.0,93554.0,1.48219235]
[1746539598902,0.2727314,93555.0,93554.0,1.01578364]
[1746539599093,0.2727314,93555.0,93554.0,0.80194994]
[1746539599296,0.2673142,93549.0,93548.0,0.2673089]
[1746539599491,0.3608,93559.0,93558.0,0.2138245]
[1746539599693,0.2672782,93559.0,93558.0,0.21382]
[1746539599997,0.2138189,93561.0,93560.0,0.21382]
[1746539600189,0.2138152,93563.0,93562.0,0.2672642]
[1746539600594,0.2138152,93563.0,93562.0,0.85214994]
[1746539600896,0.213836,93554.0,93553.0,0.2672927]
[1746539601103,0.213836,93554.0,93553.0,2.56598544]
[1746539601300,0.213836,93554.0,93553.0,2.8651535]
[1746539601501,0.213836,93554.0,93553.0,1.151318]
[1746539602202,0.213836,93554.0,93553.0,1.3651406]
[1746539602395,0.213836,93554.0,93553.0,1.3083406]
[1746539602803,0.26060091,93554.0,93553.0,1.3083406]
[1746539603196,0.31600091,93554.0,93553.0,1.044718]
[1746539603497,0.213852,93546.0,93542.0,0.2138589]
[1746539603706,0.213852,93546.0,93541.0,0.3608]
[1746539604306,0.261652,93546.0,93541.0,0.3608]
[1746539604505,0.261652,93546.0,93541.0,0.5746628]
[1746539604903,0.261652,93546.0,93524.0,1.5534755]
[1746539605114,0.2138771,93535.0,93525.0,0.0476]
[1746539605292,0.2138771,93535.0,93534.0,0.74715361]
[1746539605492,0.2138771,93535.0,93534.0,0.00160367]
[1746539605804,0.0534754,93525.0,93522.0,0.21551069]
[1746539605993,0.2138969,93527.0,93526.0,0.267367]
[1746539606198,0.2138822,93533.0,93532.0,0.51304976]
[1746539606398,0.2138822,93533.0,93532.0,0.87384976]
[1746539606709,0.2138822,93533.0,93532.0,1.7244997]
[1746539606999,0.3181317,93543.0,93542.0,0.2138611]
[1746539607204,0.3181317,93543.0,93542.0,0.29916806]
[1746539607404,0.3181317,93543.0,93542.0,1.2585791]
[1746539608101,0.2646655,93543.0,93542.0,1.2585791]
[1746539610809,0.31143041,93543.0,93542.0,1.2585791]
[1746539611008,0.04676491,93543.0,93542.0,1.03366356]
[1746539611303,0.04676491,93543.0,93542.0,1.33056356]
[1746539611508,0.04676491,93543.0,93542.0,1.27056356]
[1746539612008,0.63869836,93572.0,93570.0,0.2137971]
[1746539612009,0.42490516,93572.0,93570.0,0.2137971]
[1746539612195,0.42490516,93572.0,93570.0,0.96174962]
[1746539612396,0.42490516,93572.0,93571.0,0.2137948]
[1746539612596,0.38505356,93572.0,93571.0,1.74014732]
[1746539612801,0.34650566,93572.0,93571.0,1.85244732]
[1746539613003,0.10905012,93572.0,93571.0,1.85244732]
[1746539613313,0.10905012,93572.0,93571.0,2.02044732]
[1746539613707,0.10905012,93572.0,93571.0,2.12731932]
[1746539615205,0.32284262,93572.0,93571.0,1.75325252]
[1746539615399,0.10905012,93572.0,93571.0,0.178]
[1746539615604,0.2137905,93573.0,93571.0,0.178]
[1746539615813,0.0763,93573.0,93572.0,0.2137925]
[1746539616200,0.2137948,93571.0,93570.0,0.7216]
[1746539616404,0.0763,93573.0,93570.0,0.7216]
[1746539616611,0.0763,93573.0,93572.0,0.2137925]
[1746539616812,0.2900913,93573.0,93570.0,0.7216]
[1746539617109,0.0763,93573.0,93572.0,0.2137925]
[1746539617312,0.0015,93575.0,93574.0,0.213788]
[1746539617518,0.0015,93575.0,93574.0,0.24014052]
[1746539618013,0.0015,93575.0,93574.0,0.37154052]
[1746539618212,0.0015,93575.0,93574.0,0.54954052]
[1746539620411,0.01036,93582.0,93581.0,0.213772]
[1746539620601,0.01036,93582.0,93581.0,0.60092452]
[1746539620805,0.13479875,93584.0,93583.0,0.2137674]
[1746539621006,0.13479875,93584.0,93583.0,0.60091992]
[1746539621206,0.13479875,93584.0,93583.0,0.77891992]
[1746539621814,0.13479875,93584.0,93583.0,0.85291992]
[1746539622210,0.13479875,93584.0,93583.0,0.67491992]
[1746539622712,0.13479875,93584.0,93583.0,0.75191992]
[1746539623512,0.13479875,93584.0,93583.0,0.67791992]
[1746539623908,0.01036,93590.0,93583.0,0.67791992]
[1746539623909,0.00148145,93587.0,93584.0,0.0534408]
[1746539624113,0.00148145,93587.0,93586.0,0.2137606]
[1746539624411,0.00148145,93587.0,93586.0,1.74011312]
[1746539624617,0.01410485,93587.0,93586.0,1.89481312]
[1746539624915,0.01410485,93587.0,93586.0,1.68105252]
[1746539625118,0.01410485,93587.0,93586.0,1.60115252]
[1746539625412,0.2137651,93584.0,93583.0,0.3608]
[1746539625813,0.3206211,93584.0,93583.0,0.3608]
[1746539626208,0.3206211,93584.0,93568.0,0.3608]
[1746539626209,0.2137994,93569.0,93568.0,0.3608]
[1746539627221,0.3684994,93569.0,93568.0,0.3608]
[1746539628129,0.3684994,93569.0,93568.0,0.5746017]
[1746539631123,0.1547,93569.0,93568.0,0.5746017]
[1746539631420,0.3684994,93569.0,93568.0,0.5746017]
[1746539631617,0.3684994,93569.0,93568.0,0.3608]
[1746539631918,0.4684994,93569.0,93568.0,0.3608]
[1746539632122,0.21382,93560.0,93557.0,0.00160329]
[1746539632620,0.2138245,93558.0,93557.0,0.00160329]
[1746539633031,0.2138245,93558.0,93547.0,0.3608]
[1746539633032,0.2138474,93548.0,93547.0,0.3608]
[1746539633316,0.2138474,93548.0,93529.0,0.0534723]
[1746539633317,0.1,93548.0,93526.0,0.36240381]
[1746539633519,0.2138725,93538.0,93537.0,0.2673403]
[1746539633717,0.2138657,93540.0,93539.0,0.02635252]
[1746539633924,0.2138748,93536.0,93535.0,0.24022812]
[1746539634326,0.3672748,93536.0,93535.0,0.24022962]
[1746539635027,0.3672748,93536.0,93535.0,0.02635252]
[1746539635326,0.2138954,93527.0,93526.0,0.00160381]
[1746539635720,0.2138954,93527.0,93526.0,1e-08]
[1746539635922,0.2139206,93516.0,93506.0,0.2139431]
[1746539636227,0.3139206,93516.0,93502.0,0.3608]
[1746539636817,0.3655206,93516.0,93502.0,0.3608]
[1746539637017,0.3655206,93516.0,93503.0,0.0534874]
[1746539637317,0.3655206,93516.0,93506.0,0.2139426]
[1746539637516,0.4655206,93516.0,93505.0,0.2139441]
[1746539637720,0.3655206,93516.0,93503.0,0.0534874]
[1746539638423,0.3655206,93516.0,93515.0,0.21499224]
[1746539639025,0.37352456,93516.0,93515.0,0.21499224]
[1746539639225,0.3655206,93516.0,93515.0,0.24134476]
[1746539640730,0.3655206,93516.0,93515.0,0.32134476]
[1746539641323,0.0763,93516.0,93515.0,0.32134476]
[1746539641519,0.01036,93521.0,93520.0,0.2139114]
[1746539641718,0.01036,93521.0,93520.0,0.24026392]
[1746539641915,0.1533,93525.0,93515.0,0.08106934]
[1746539641916,0.2139206,93516.0,93515.0,0.08106934]
[1746539642319,0.2139206,93516.0,93515.0,0.00106934]
[1746539642927,0.6747206,93516.0,93515.0,4e-08]
[1746539643131,0.5747206,93516.0,93515.0,4e-08]
[1746539643523,0.7257206,93516.0,93515.0,4e-08]
[1746539643824,0.8257206,93516.0,93515.0,4e-08]
[1746539647330,0.7257206,93516.0,93515.0,4e-08]
[1746539647527,0.3649206,93516.0,93515.0,0.02635256]
[1746539647731,0.3649206,93516.0,93515.0,0.24027546]
[1746539648032,0.2921206,93516.0,93515.0,0.24027546]
[1746539648226,0.2921206,93516.0,93515.0,0.41827546]
[1746539648531,0.2921206,93516.0,93515.0,0.49607546]
[1746539648724,0.2139206,93516.0,93515.0,0.57907546]
[1746539649629,0.2139206,93516.0,93515.0,0.57903546]
[1746539650135,0.2139206,93516.0,93515.0,0.10411256]
[1746539650430,0.2139206,93516.0,93515.0,0.31803546]
[1746539651221,0.2139206,93516.0,93515.0,0.49603546]
[1746539651728,0.6747206,93516.0,93515.0,0.17414626]
[1746539651931,0.213964,93497.0,93496.0,0.0812]
[1746539652134,0.2139801,93490.0,93489.0,0.2477823]
[1746539652323,0.2139801,93490.0,93489.0,0.04987586]
[1746539652725,0.2139801,93490.0,93489.0,0.0338]
[1746539652726,0.3139801,93490.0,93489.0,0.0338]
[1746539652925,0.3139801,93490.0,93489.0,0.01607703]
[1746539653129,0.0534986,93484.0,93471.0,0.008]
[1746539653427,0.1535018,93478.0,93471.0,0.008]
[1746539653729,0.2717278,93472.0,93471.0,0.008]
[1746539653937,0.56647787,93472.0,93471.0,0.008]
[1746539654133,0.72973407,93472.0,93466.0,0.3608]
[1746539654433,0.2640373,93465.0,93464.0,0.3608]
[1746539654732,0.2140373,93465.0,93464.0,0.4108]
[1746539655034,0.3140373,93465.0,93464.0,0.3608]
[1746539655231,0.2140579,93456.0,93455.0,0.00107003]
[1746539655927,0.3140579,93456.0,93455.0,0.00107003]
[1746539656237,0.3931579,93456.0,93455.0,0.00107003]
[1746539656536,0.2931579,93456.0,93455.0,0.00107003]
[1746539656939,0.2140579,93456.0,93455.0,0.57593023]
[1746539657126,0.2140579,93456.0,93455.0,0.75393023]
[1746539657642,0.2140579,93456.0,93455.0,0.83223023]
[1746539657933,0.2140579,93456.0,93455.0,0.27300901]
[1746539658535,0.2916579,93456.0,93455.0,0.25737003]
[1746539659034,0.2916579,93456.0,93455.0,0.17907003]
[1746539659337,0.2916579,93456.0,93455.0,0.00107003]
[1746539660033,0.3916579,93456.0,93455.0,0.00107003]
[1746539660335,0.2916579,93456.0,93455.0,0.00107003]
[1746539660839,0.3916579,93456.0,93455.0,0.00107003]
[1746539664325,0.2140579,93456.0,93455.0,0.00107003]
[1746539664528,0.2140579,93456.0,93455.0,0.57593023]
[1746539665037,0.2140579,93456.0,93455.0,0.59229781]
[1746539665239,0.2140579,93456.0,93455.0,0.77029781]
[1746539665537,0.2140579,93456.0,93455.0,0.78609073]
[1746539666438,0.2140579,93456.0,93455.0,0.57203053]
[1746539666837,0.2140579,93456.0,93455.0,0.21123053]
[1746539666838,0.3140579,93456.0,93455.0,0.21123053]
[1746539667045,0.4809579,93456.0,93455.0,0.21123053]
[1746539667335,0.4809579,93456.0,93455.0,0.01686295]
[1746539669839,0.2675861,93453.0,93452.0,0.0535165]
[1746539670035,0.0535175,93451.0,93447.0,0.3608]
[1746539670230,0.0535175,93451.0,93448.0,0.28334283]
[1746539670433,0.0535175,93451.0,93449.0,0.22982393]
[1746539670632,0.2675869,93451.0,93450.0,0.22982917]
[1746539670833,0.0535175,93451.0,93447.0,0.5388]
[1746539671033,0.2140739,93449.0,93448.0,0.2298315]
[1746539671337,0.2140739,93449.0,93448.0,0.3920739]
[1746539671734,0.2140739,93449.0,93448.0,0.178]
[1746539671942,0.2140739,93449.0,93448.0,0.3920762]
[1746539672441,0.3140739,93449.0,93448.0,0.178]
[1746539672841,0.2140739,93449.0,93448.0,0.3920762]
[1746539673040,0.2140739,93450.0,93449.0,0.2140739]
[1746539673237,0.2140739,93449.0,93448.0,0.3920755]
[1746539673441,0.2140739,93449.0,93448.0,0.40787182]
[1746539673638,0.574866,93458.0,93457.0,0.2140556]
[1746539673840,0.214066,93458.0,93457.0,0.22985147]
[1746539674239,0.214066,93458.0,93457.0,0.40785147]
[1746539674430,0.214066,93458.0,93457.0,0.76865147]
[1746539674942,0.01037,93460.0,93459.0,0.214051]
[1746539675144,0.2244187,93460.0,93459.0,0.22984687]
[1746539675445,0.2140487,93460.0,93459.0,0.22984687]
[1746539676042,0.08085796,93463.0,93462.0,0.2140442]
[1746539676238,0.08085796,93463.0,93462.0,0.22984007]
[1746539676444,0.08085796,93463.0,93462.0,0.69763607]
[1746539677239,0.08085796,93463.0,93462.0,0.87563607]
[1746539679549,0.08085796,93463.0,93462.0,1.12563607]
[1746539679750,0.08085796,93463.0,93462.0,0.87563607]
[1746539680046,0.06737197,93469.0,93462.0,1.04159187]
[1746539680245,0.3608,93513.0,93476.0,0.2140121]
[1746539680450,0.3608,93513.0,93482.0,0.2139984]
[1746539680451,0.08069646,93483.0,93482.0,0.2139984]
[1746539680646,0.29469256,93483.0,93482.0,0.22979427]
[1746539681147,0.08069646,93483.0,93482.0,0.40779427]
[1746539681358,0.29469256,93483.0,93482.0,0.40779427]
[1746539681544,0.08069646,93483.0,93482.0,0.40779427]
[1746539681850,0.29469256,93483.0,93482.0,0.40779427]
[1746539682255,0.29469256,93483.0,93482.0,0.3919984]
[1746539682852,0.08069646,93483.0,93482.0,0.3919984]
[1746539685052,0.2139961,93483.0,93482.0,0.3919984]
[1746539685251,0.2139961,93483.0,93482.0,0.40777047]
[1746539685948,0.2139928,93485.0,93484.0,0.2139938]
[1746539686145,0.001,93486.0,93484.0,0.55457207]
[1746539686350,0.001,93486.0,93485.0,0.22976357]
[1746539686543,0.001,93486.0,93485.0,1.72976357]
[1746539686739,0.001,93486.0,93485.0,1.7298236]
[1746539686945,0.2149892,93486.0,93485.0,0.2298236]
[1746539687144,0.2149892,93486.0,93485.0,0.1938321]
[1746539687648,0.2149892,93486.0,93485.0,0.4078236]
[1746539688257,0.2149892,93486.0,93485.0,0.2298236]
[1746539689257,0.2149892,93486.0,93485.0,0.2139915]
[1746539689753,0.001,93486.0,93485.0,0.2971915]
[1746539689948,0.001,93486.0,93485.0,0.3782915]
[1746539690154,0.001,93486.0,93485.0,0.5562915]
[1746539690945,0.001,93486.0,93485.0,0.57195732]
[1746539691850,0.001,93486.0,93485.0,0.67892532]
[1746539692645,0.001,93486.0,93485.0,2.17892532]
[1746539692847,0.13429123,93499.0,93498.0,0.2139617]
[1746539693049,0.13429123,93499.0,93498.0,0.59042752]
[1746539693750,0.13429123,93499.0,93498.0,0.75532752]
[1746539694055,0.0015,93505.0,93498.0,0.75532752]
[1746539694056,0.0814,93505.0,93504.0,0.213948]
[1746539694253,0.0015,93505.0,93504.0,0.213948]
[1746539694551,0.0015,93505.0,93504.0,0.24519566]
[1746539695244,0.0015,93505.0,93504.0,0.53014366]
[1746539695455,0.0015,93505.0,93504.0,0.51456182]
[1746539695657,0.13429123,93514.0,93513.0,0.2139274]
[1746539695955,0.13429123,93514.0,93513.0,0.59039322]
[1746539696151,0.13429123,93514.0,93513.0,0.76839322]
[1746539696655,0.001,93516.0,93513.0,0.76839322]